Cogmind - Beta 10.2 @@@ ROGUE MODE // 2020.12.11 @ 22:20:35 // Halloween2020/ForbiddenLore Player: blelm Result: Self-destructed Performance ------------- Evolutions (9) 4500 Regions Visited (31) 6200 Robots Destroyed (553) 2765 Value Destroyed (26615) 26615 Prototype IDs (59) 1180 Alien Tech Used (3) 600 Bonus (13733) 13733 TOTAL SCORE: 55593 Bonus ------- Triggered High Security 1000 High Alert Combat Kills 8139 Follower Combat Kills 949 Aligned with FarCom 300 Met Data Miner 300 Met Imprinter 300 Built Enhanced Grunts 300 A7 Reached Mainframe 300 Met R17 at Cetus 500 Found Hidden Lab 3000 Met R17 at Research 2000 Scanned by Researcher 500 Friendly Fire -3855 Cogmind --------- Core Integrity 1442/1600 Matter 190/300 Energy 8/600 System Corruption 0% Temperature Cool (171) Movement Immobile (Siege) Location -1/Command Parts ------- > --- POWER (2) -------- Quantum Reactor Quantum Reactor > --- PROPULSION (6) --- Heavy Siege Treads Biometal Heavy Treads Biometal Heavy Treads > --- UTILITY (13) ----- Improved Fusion Compressor Advanced Heat Sink High-capacity Storage Unit High-capacity Storage Unit High-capacity Storage Unit Experimental Terrain Scan Processor Advanced Salvage Targeting Computer Advanced Armor Integrity Analyzer Advanced Weapon Cycler Centrium Medium Armor Plating Heavy Regenerative Plating Experimental Force Field > --- WEAPON (5) ------- KE Penetrator KE Penetrator Enhanced Coil Gun Enhanced Coil Gun Railgun > --- INVENTORY (28) --- Quantum Reactor Biometal Heavy Treads Biometal Heavy Treads Advanced Energy Well (800) High-capacity Matter Pod (200) Long-range Terrain Scanner Damper Plating Improved Focal Shield Advanced Component Analysis Suite Improved System Restoration Module HERF Cannon Enhanced Nova Cannon Helical Railgun Gamma Bomb Array Peak State ------------ > --- POWER ------------ Quantum Reactor Quantum Reactor > --- PROPULSION ------- Improved Heavy Siege Treads Biometal Heavy Treads Biometal Heavy Treads > --- UTILITY ---------- Advanced Heat Sink Advanced Heat Sink High-capacity Storage Unit High-capacity Storage Unit High-capacity Storage Unit Experimental Terrain Scan Processor Advanced Salvage Targeting Computer Advanced Weapon Cycler Advanced Powered Armor Medium Regenerative Plating Heavy Regenerative Plating Advanced Force Field > --- WEAPON ----------- Enhanced Nova Cannon Hypervelocity Railgun Hypervelocity Railgun Hypervelocity Railgun Hypervelocity Railgun > --- INVENTORY -------- Quantum Reactor Heavy Siege Treads Biometal Heavy Treads Biometal Heavy Treads Advanced Energy Well High-capacity Matter Pod Long-range Terrain Scanner Advanced Armor Integrity Analyzer Advanced Weapon Cycler Centrium Medium Armor Plating Damper Plating Improved Focal Shield Experimental Force Field Advanced Component Analysis Suite Long-range Tractor Beam Sensor Drone Bay Enhanced Coil Gun Enhanced Coil Gun Hypervelocity Railgun Hypervelocity Railgun Hypervelocity Railgun Helical Railgun Gamma Bomb Array [Rating: 203] Favorites ----------- Power Quantum Reactor Engine Heavy Ion Engine Power Core Neutrino Core Reactor Quantum Reactor Propulsion Light Treads Treads Light Treads Leg Aluminum Leg Wheel Armored Huge Wheel Utility High-capacity Storage Unit Device Long-range Terrain Scanner Storage High-capacity Storage Unit Processor Experimental Terrain Scan Processor Hackware System Shield Protection Medium Regenerative Plating Weapon Hypervelocity Railgun Energy Gun Lightning Gun Energy Cannon Proton Cannon Ballistic Gun Hypervelocity Railgun Ballistic Cannon Hypervelocity Gauss Cannon Launcher Shock Bomb Launcher Special Weapon Mining Laser Impact Weapon Maul Piercing Weapon Spear Build | -11 -10 -10 -9 -9 -9 -8 -8 -7 -7 -7 -7 -6 -6 -6 -6 -6 -5 -5 -5 -5 -5 -5 -5 -5 -4 -4 -4 -3 -2 -1 -1 ------- Run | Scr Mat Min Mat Min Exi Min Mat Fac Low Low Zio Pro Fac Low Low Dat Pro Fac Was Fac Ext Cet Arc Hub Fac Arm Lab Res Res Acc Com Slots Evolved 17 | . . . 2 . . . 2 2 . . . . 2 . . . . 2 . . . . . . 2 . . 2 2 1 . Power 1 | . . . . . . . . . . . . . . . . . . . . . . . . . . . . . . 1 . Propulsion 3 | . . . 1 . . . . . . . . . . . . . . . . . . . . . . . . . 2 . . Utility 10 | . . . 1 . . . 1 2 . . . . 2 . . . . 1 . . . . . . 2 . . 1 . . . Weapon 3 | . . . . . . . 1 . . . . . . . . . . 1 . . . . . . . . . 1 . . . Parts Attached 740 | 2 17 3 25 7 2 2 27 53 3 6 . 2 58 11 5 3 8 31 6 36 35 24 . 26 17 57 7 41 41 95 90 Power 22 | . . . 3 . . . 1 1 . . . . 1 . . . . 1 1 . 3 1 . . . 3 . 2 . 2 3 Engine 5 | . . . 2 . . . 1 1 . . . . 1 . . . . . . . . . . . . . . . . . . Core 2 | . . . 1 . . . . . . . . . . . . . . 1 . . . . . . . . . . . . . Reactor 15 | . . . . . . . . . . . . . . . . . . . 1 . 3 1 . . . 3 . 2 . 2 3 Propulsion 53 | 2 2 . 8 1 . . 6 10 . . . . 2 2 . . . 1 1 . 1 4 . . . 4 . 2 3 3 1 Treads 48 | 1 1 . 8 1 . . 6 8 . . . . 1 2 . . . 1 1 . 1 4 . . . 4 . 2 3 3 1 Leg . | . . . . . . . . . . . . . . . . . . . . . . . . . . . . . . . . Wheel 5 | 1 1 . . . . . . 2 . . . . 1 . . . . . . . . . . . . . . . . . . Hover . | . . . . . . . . . . . . . . . . . . . . . . . . . . . . . . . . Flight . | . . . . . . . . . . . . . . . . . . . . . . . . . . . . . . . . Utility 353 | . 4 2 4 2 2 . 3 15 2 . . 1 29 9 . . 3 9 4 17 10 8 . 14 13 27 4 20 26 64 61 Device 204 | . 2 2 1 . . . . 3 1 . . . 22 6 . . 2 7 1 14 6 2 . 6 5 12 1 15 18 38 40 Storage 23 | . 2 . 2 1 2 . 1 2 . . . . . . . . . . . 1 . . . 1 . 3 . 4 1 2 1 Processor 8 | . . . . . . . . 1 . . . . 1 . . . 1 2 . . . 1 . . . . . 1 . . 1 Hackware 5 | . . . . . . . . 3 . . . . 2 . . . . . . . . . . . . . . . . . . Protection 113 | . . . 1 1 . . 2 6 1 . . 1 4 3 . . . . 3 2 4 5 . 7 8 12 3 . 7 24 19 Artifact . | . . . . . . . . . . . . . . . . . . . . . . . . . . . . . . . . Weapon 312 | . 11 1 10 4 . 2 17 27 1 6 . 1 26 . 5 3 5 20 . 19 21 11 . 12 4 23 3 17 12 26 25 Energy Gun 14 | . 7 . 2 . . . . 2 . . . . . . . . . . . . . 1 . 1 . . 1 . . . . Energy Cannon 107 | . . . . . . . . 13 1 3 . 1 13 . 3 3 2 7 . 10 9 . . 3 3 6 1 6 5 9 9 Ballistic Gun 129 | . . . 5 2 . 1 9 8 . . . . 13 . . . . 10 . 6 5 6 . 6 1 15 1 10 6 13 12 Ballistic Cannon 5 | . . . . . . . . . . 1 . . . . . . . . . 1 3 . . . . . . . . . . Launcher 45 | . 1 1 1 . . 1 5 3 . 2 . . . . 2 . 3 2 . 2 4 4 . 2 . 2 . 1 1 4 4 Special Weapon 10 | . 2 . 2 2 . . 3 . . . . . . . . . . 1 . . . . . . . . . . . . . Impact Weapon 1 | . 1 . . . . . . . . . . . . . . . . . . . . . . . . . . . . . . Slashing Weapon . | . . . . . . . . . . . . . . . . . . . . . . . . . . . . . . . . Piercing Weapon 1 | . . . . . . . . 1 . . . . . . . . . . . . . . . . . . . . . . . Special Melee Weapon . | . . . . . . . . . . . . . . . . . . . . . . . . . . . . . . . . Unidentified Prototypes 23 | . . 1 1 . . . . 2 . . . . . 1 . . . 1 . 1 1 5 . 1 . 1 4 3 . . 1 Parts Lost 41 | . 3 . . . . . 4 6 . . . 1 1 . . . . . . . 5 . . 4 1 1 . 3 1 2 9 Power 3 | . . . . . . . 1 . . . . . . . . . . . . . 1 . . . 1 . . . . . . Propulsion 2 | . . . . . . . 1 1 . . . . . . . . . . . . . . . . . . . . . . . Utility 17 | . 1 . . . . . 2 3 . . . . 1 . . . . . . . 2 . . 1 . 1 . 2 . . 4 Weapon 19 | . 2 . . . . . . 2 . . . 1 . . . . . . . . 2 . . 3 . . . 1 1 2 5 Highest Loss Streak 4 | . 2 . . . . . 2 3 . . . 1 1 . . . . . . . 4 . . 1 1 1 . 2 1 1 4 Average Slot Usage (%) 89 | . 98 100 99 100 100 100 99 94 92 92 92 92 88 86 87 70 87 88 82 79 76 79 83 84 89 89 85 85 83 83 83 Engine 4 | . 14 14 7 11 11 11 9 7 7 7 7 7 6 6 6 6 6 . . . . . . . . . . . . . . Reactor 2 | . . . . . . . . . . . . . . . . . . . 2 5 4 5 5 5 4 5 4 3 4 7 7 Treads 12 | . 14 14 28 33 33 33 26 12 7 7 7 7 6 9 12 12 12 11 5 5 5 11 11 11 10 10 9 8 12 11 11 Wheel 3 | . 14 14 4 . . . . 4 7 7 7 7 6 6 6 6 6 5 5 5 4 . . . . . . . . . . Device 10 | . 11 14 4 . . . . . 7 7 7 7 10 12 12 12 12 15 10 12 8 5 5 8 14 15 15 19 16 19 19 Storage 18 | . 15 14 22 23 22 22 27 23 23 23 23 23 20 18 18 18 18 16 16 16 16 16 16 16 15 15 14 14 15 11 11 Processor 5 | . . . . . . . . 3 7 7 7 7 4 6 6 6 6 5 11 5 5 9 11 11 10 10 9 8 8 7 7 Hackware 1 | . . . . . . . . 9 5 . . . 3 . . . . . . . . . . . . . . . . . . Protection 7 | . . . 6 9 11 11 8 7 1 7 7 7 9 6 6 6 6 5 5 5 7 11 11 9 15 14 9 8 7 5 5 Energy Gun 2 | . 17 14 8 . . . . 1 7 7 7 7 . . . . . . . . . . . . . . . . . . . Energy Cannon 6 | . . . . . . . . 11 12 14 15 15 9 18 15 1 17 10 . 7 5 . . 1 2 3 4 3 3 2 2 Ballistic Gun 10 | . 5 . 11 21 22 21 24 7 . . . . 9 . . . . 7 22 10 10 12 22 20 17 15 15 17 16 15 15 Naked Turns . | . . . . . . . . . . . . . . . . . . . . . . . . . . . . . . . . Heaviest Build 255 | 12 56 57 85 110 85 86 121 137 151 151 151 151 162 169 169 169 169 168 172 194 191 166 162 162 193 173 185 207 229 255 244 Greatest Support 225 | 20 20 20 60 60 60 60 62 62 28 28 28 28 28 30 28 28 28 28 28 28 140 160 160 160 160 160 150 150 225 225 225 Greatest Overweight (x) 60 | . 3 3 4 1 1 1 1 6 5 5 5 5 5 6 6 6 6 5 6 6 6 1 1 1 1 1 60 1 1 1 1 Average Overweight (x) 3 | . 1 2 2 1 1 1 1 3 4 4 5 4 4 5 5 5 5 5 5 5 5 . 1 . . . 7 1 . . . Largest Inventory Capacity 28 | 6 18 12 20 28 20 20 28 28 28 28 28 28 28 28 28 28 28 28 28 28 28 28 28 28 28 28 28 28 28 28 28 Average Capacity 26 | 6 11 12 19 21 20 20 27 28 28 28 28 28 28 28 28 28 28 28 28 28 28 28 28 28 28 28 28 28 28 28 28 Most Carried 28 | 6 12 12 20 23 20 20 26 28 28 28 28 28 28 28 28 28 28 28 28 28 28 28 28 28 28 28 28 28 28 28 28 Average Carried 25 | 4 10 11 19 20 19 20 21 27 27 27 28 27 27 27 27 28 27 27 27 27 27 27 27 26 25 27 27 27 27 27 27 Final Capacity 28 | 6 12 12 20 20 20 20 28 28 28 28 28 28 28 28 28 28 28 28 28 28 28 28 28 28 28 28 28 28 28 28 28 Final Carried 28 | 3 10 12 20 20 20 20 25 28 27 28 28 27 28 28 28 28 28 27 28 28 27 28 28 26 28 28 28 27 28 28 18 Class Distribution -------------------- 64% | Hauler-Mutant 14% | Hauler-Skirmisher 6% | Mutant 5% | Scavenger-Skirmisher 4% | Hauler-Tank 3% | Scavenger-Mutant Dominant Class ---------------- Mutant | -10/Materials Mutant | -10/Mines Hauler-Mutant | -9/Materials Hauler-Mutant | -9/Mines Hauler-Mutant | -9/Exiles Hauler-Mutant | -8/Mines Hauler-Skirmisher | -8/Materials Hauler-Mutant | -7/Factory Hauler-Mutant | -7/Lower Caves Hauler-Mutant | -7/Lower Caves Hauler-Mutant | -7/Zion Hauler-Mutant | -6/Proximity Caves Hauler-Mutant | -6/Factory Hauler-Mutant | -6/Lower Caves Hauler-Mutant | -6/Lower Caves Hauler-Mutant | -6/Data Miner Hauler-Mutant | -5/Proximity Caves Hauler-Mutant | -5/Factory Hauler-Skirmisher | -5/Waste Hauler-Mutant | -5/Factory Hauler-Skirmisher | -5/Extension Hauler-Mutant | -5/Cetus Scavenger-Skirmisher | -5/Archives Scavenger-Skirmisher | -5/Hub_04(d) Scavenger-Mutant | -4/Factory Scavenger-Mutant | -4/Armory Hauler-Mutant | -4/Lab Hauler-Mutant | -3/Research Hauler-Mutant | -2/Research Hauler-Mutant | -1/Access Hauler-Mutant | -1/Command Resources | -11 -10 -10 -9 -9 -9 -8 -8 -7 -7 -7 -7 -6 -6 -6 -6 -6 -5 -5 -5 -5 -5 -5 -5 -5 -4 -4 -4 -3 -2 -1 -1 ----------- Run | Scr Mat Min Mat Min Exi Min Mat Fac Low Low Zio Pro Fac Low Low Dat Pro Fac Was Fac Ext Cet Arc Hub Fac Arm Lab Res Res Acc Com Matter Collected 22851 | 240 188 80 473 260 . 123 935 854 40 108 . . 1029 511 154 . 190 470 532 581 670 464 577 979 130 1980 . 2182 1729 4567 2805 Remotely 8835 | . . . . . . . . . . . . . . . . . . . . . . . . 99 . 763 . 1982 1403 2815 1773 Salvage Created 33886 | 85 545 22 908 548 . 182 1450 1998 60 267 . . 914 125 220 . 16 1241 1592 864 1504 700 459 1887 120 1624 . 2343 2006 5974 6232 Parts 1878 | 2 36 9 65 30 . 10 94 122 4 12 . . 48 5 4 . 3 57 28 49 48 40 29 106 11 90 . 125 154 381 316 Haulers Intercepted 15 | . 1 . 6 . . . 3 2 . . . . . . . . . . . . . . . 1 . . . 1 . 1 . Recyclers Shooed 11 | 1 . . 2 . . . . 1 . . . . 3 . . . . . . . 2 . . . . . . . . 1 1 Parts Field Recycled . | . . . . . . . . . . . . . . . . . . . . . . . . . . . . . . . . Retrieved Matter . | . . . . . . . . . . . . . . . . . . . . . . . . . . . . . . . . Parts Self-Destructed 19 | . . . . . . . . . 2 8 . . . . . . 9 . . . . . . . . . . . . . . Prevented 18 | . . . . . . . . . 2 6 . . . 5 3 . 2 . . . . . . . . . . . . . . Kills | -11 -10 -10 -9 -9 -9 -8 -8 -7 -7 -7 -7 -6 -6 -6 -6 -6 -5 -5 -5 -5 -5 -5 -5 -5 -4 -4 -4 -3 -2 -1 -1 ------- Run | Scr Mat Min Mat Min Exi Min Mat Fac Low Low Zio Pro Fac Low Low Dat Pro Fac Was Fac Ext Cet Arc Hub Fac Arm Lab Res Res Acc Com Combat Hostiles Destroyed 422 | . 10 4 13 9 . 5 32 31 1 7 . . 12 2 3 . 1 12 6 10 19 8 4 25 2 28 . 23 25 63 67 Melee 4 | . . . . . . . . . . . . . . . . . . . . . . . . . . 1 . . 1 1 1 Guns 266 | . 8 . 11 9 . 3 22 6 1 . . . 8 . . . . 3 6 3 2 . 4 21 2 17 . 20 21 41 58 Cannons 33 | . . . . . . . . 12 . . . . 1 . . . . 2 . 3 7 . . . . 4 . . . 3 1 AOE 75 | . 2 4 2 . . 2 10 9 . 6 . . . . 2 . 1 5 . 2 4 2 . 4 . 6 . 2 3 6 3 Classes Destroyed 24 | 1 6 . 2 2 . 1 1 3 . . . . . . . . . . 1 . 1 . . . . 3 . 1 . 1 1 Worker 30 | . 1 . 1 2 . . 2 3 . . . . . . . . . 1 . 1 2 . . 5 . . . 2 . 4 6 Builder 28 | . 1 . 2 2 . . 3 3 . . . . 1 . . . . 2 . 4 2 . . 2 . . . . 3 3 . Tunneler 6 | . . . . . . 1 1 . . . . . 1 . . . . 1 . . 1 . . . . . . 1 . . . Hauler 15 | . 1 . 6 . . . 3 2 . . . . . . . . . . . . . . . 1 . . . 1 . 1 . Recycler 24 | 1 2 . 1 3 . . 1 1 . . . . 1 . . . . 2 . 1 3 . . 1 . . . 1 . 4 2 Carrier 1 | . . . . . . . . . . . . . . . . . . . . . . . . . . . . . . 1 . Mechanic 1 | . . . . . . . . . . . . . . . . . . . . . . . . . . . . . . . 1 Operator 8 | . . . 1 . . . 2 1 . . . . 2 . . . . . . . . . 1 . . . . . 1 . . Watcher 18 | . 3 . 1 . . . 2 6 . . . . 2 . . . . . . 1 . 2 . . . . . . . . 1 Swarmer 68 | . 5 4 3 3 . . 15 6 . 3 . . . . . . 1 . . . . . . 5 . 8 . . 5 4 6 Saboteur 5 | . . . . . . . . . . . . . . . . . . . . . . . . . . 1 . . . 2 2 Grunt 129 | . 5 . 5 2 . 5 10 9 . 4 . . . . 3 . . 5 . 3 10 . . 11 . 5 . 10 5 16 21 Brawler 10 | . . . . 1 . . . 2 . . . . . . . . . . . . . . . . . . . 1 2 . 4 Duelist 10 | . . . . . . . . 2 . . . . . . . . . . . . . . . 1 . 2 . . 1 1 3 Protector 5 | . . . . . . . . 1 . . . . . . . . . . . . . . . . . . . . 1 . 3 Sentry 50 | . . . 5 2 . . 6 6 . . . . 4 . . . . 1 . 2 2 . 4 4 . 4 . 2 2 3 3 Demolisher 3 | . . . . . . . . . . . . . . . . . . . . . . . . . . 1 . 2 . . . Specialist 3 | . . . . . . . . . . . . . . . . . . . . . . . . . . 3 . . . . . Hunter 47 | . . . . . . . 1 2 1 . . . . 2 . . . 4 . 2 5 1 . 1 . . . 4 . 12 12 Programmer 74 | . . . . . . . . 3 . . . . 8 . . . . 2 . 3 . 1 . 3 2 4 . 2 9 25 12 Behemoth 2 | . . . . . . . . . . . . . . . . . . . . . 2 . . . . . . . . . . Compactor 6 | . . . . . . . . . . . . . . . . . . . 6 . . . . . . . . . . . . Cetus Guard 6 | . . . . . . . . . . . . . . . . . . . . . . 6 . . . . . . . . . Striker 3 | . . . . . . . . . . . . . . . . . . . . . . . . . . . . 2 . . 1 Decomposer 1 | . . . . . . . . . . 1 . . . . . . . . . . . . . . . . . . . . . Assembled 1 | . . . . 1 . . . . . . . . . . . . . . . . . . . . . . . . . . . Best Kill Streak 25 | 1 5 2 4 4 . 4 11 6 1 4 . . 2 1 3 . 1 7 2 7 6 4 2 11 2 9 . 10 5 12 25 Combat Bots Only 24 | . 3 2 2 3 . 3 9 5 1 4 . . 1 1 3 . 1 5 2 4 5 3 2 6 2 9 . 10 5 9 24 Max Kills in Single Turn 4 | 1 1 2 2 1 . 1 3 2 1 2 . . 1 1 2 . 1 3 1 3 3 2 1 3 1 4 . 3 2 3 2 Gunslinging 2 | . . . 1 . . . . . . . . . . . . . . . . . . . . 1 . . . 2 1 1 1 Exploded 4 | . 1 2 2 . . 1 3 2 . 2 . . . . 2 . 1 2 . 1 1 2 . 2 . 4 . 1 1 2 2 Melee 1 | . . . . . . . . . . . . . . . . . . . . . . . . . . 1 . . 1 1 1 Uniques/NPCs Destroyed 1 | . . . . . . . . . . . . . . . . . . . . . . 1 . . . . . . . . . A7 (-5/Cetus) Combat | -11 -10 -10 -9 -9 -9 -8 -8 -7 -7 -7 -7 -6 -6 -6 -6 -6 -5 -5 -5 -5 -5 -5 -5 -5 -4 -4 -4 -3 -2 -1 -1 -------- Run | Scr Mat Min Mat Min Exi Min Mat Fac Low Low Zio Pro Fac Low Low Dat Pro Fac Was Fac Ext Cet Arc Hub Fac Arm Lab Res Res Acc Com Damage Taken 23347 | . 332 62 282 262 . 170 1330 1739 . 91 . 344 804 310 25 . . 353 . 381 2395 90 312 2124 785 1825 . 1067 444 3007 4813 Core 1250 | . 23 . 28 42 . 18 177 247 . . . 72 . . . . . . . 26 107 . 26 147 37 39 . 94 9 65 93 Absorbed by Shields 4748 | . . . . . . . . . . . . . 169 116 . . . 198 . 9 . 88 . . . 197 . 262 216 1398 2095 Reduced by Siege Mode 987 | . . . . . . . . . . . . . . . . . . . . 11 32 . 19 59 3 123 . 66 10 202 462 Core Remaining (%) 83 | 100 . 90 . . . 78 67 . . . . 54 . . . . 100 . . . . . . 69 . . 86 92 99 . . Volleys Fired 1523 | 5 37 4 56 36 . 13 90 124 5 22 . 19 82 9 15 . 13 46 24 55 65 26 11 65 12 108 44 77 97 206 157 Largest 5 | 2 2 1 2 2 . 2 3 3 3 1 . 1 3 2 2 . 2 4 4 4 4 4 4 4 4 4 4 5 5 5 5 Hottest 280 | 40 130 30 130 100 . 50 100 229 160 110 . 110 150 150 90 . 150 150 109 207 200 133 130 240 130 160 240 280 273 280 266 Shots Fired 3643 | 10 62 4 106 66 . 23 232 207 7 22 . 19 165 16 20 . 16 73 96 108 152 84 44 200 22 239 56 242 243 557 552 Gun 2693 | 10 51 . 100 60 . 20 214 58 1 . . . 101 . . . . 24 96 40 51 64 44 186 16 182 12 209 190 458 506 Cannon 761 | . . . . . . . . 134 4 16 . 19 64 16 12 . 12 43 . 64 82 . . 9 6 54 44 27 49 76 30 Launcher 160 | . 2 4 1 . . 3 10 15 2 6 . . . . 8 . 4 5 . 4 19 20 . 5 . 3 . 6 4 23 16 Special 29 | . 9 . 5 6 . . 8 . . . . . . . . . . 1 . . . . . . . . . . . . . Kinetic 2657 | 10 22 . 64 60 . 20 214 48 . . . . 99 . . . . 24 96 48 85 64 44 186 16 182 12 209 190 458 506 Thermal 598 | . 38 . 41 6 . . 8 56 3 16 . 19 32 3 12 . 8 29 . 41 1 . . 9 6 54 44 27 49 76 20 Explosive 43 | . 2 4 1 . . 3 10 7 . 2 . . . . . . 2 . . . 8 2 . 2 . . . . . . . Electromagnetic 344 | . . . . . . . . 96 4 4 . . 34 13 8 . 6 19 . 19 58 18 . 3 . 3 . 6 4 23 26 Robot Hit Streak 52 | 6 17 5 17 7 . 10 15 27 6 12 . . 13 4 . . 5 23 15 11 21 9 20 25 31 24 . 32 31 29 52 Robot Miss Streak 8 | 1 5 2 4 2 . 2 7 4 . . . . 8 2 . . 1 4 4 5 7 4 1 3 1 3 . 5 3 7 2 Penetration Max 3 | . . . . . . . . . . . . . . . . . . . . . 1 1 1 1 . 1 . 3 3 1 2 Secondary Targets 54 | . 1 . 1 2 . . 1 . . . . . . . . . . . 1 . . . . 6 . 3 . 4 4 9 22 Max Gunslinging Chain 2 | . 1 . 1 1 . . 1 . . . . . . . . . . . 1 . . . . 1 . 1 . 2 1 1 2 Shots Hit Robots 2418 | 7 40 2 79 43 . 18 140 115 3 6 . . 113 7 . . 2 47 86 65 111 52 39 146 12 161 . 133 156 391 444 Core Hits 1440 | 3 45 5 55 20 . 14 72 85 2 10 . . 56 1 5 . 3 43 71 47 92 52 17 65 4 68 . 76 83 234 212 Critical Hits 448 | . . . 1 . . . 1 1 . . . . . . . . . . . 4 20 4 3 23 4 39 . 51 61 133 103 Critical Kills 150 | . . . 1 . . . . . . . . . . . . . . . . 2 2 . 2 9 . 11 . 20 22 41 40 Critical Parts Destroyed 261 | . . . . . . . . . . . . . . . . . . . . 2 12 1 . 12 4 26 . 22 36 89 57 Melee Attacks 4 | . 2 . . . . . . 2 . . . . . . . . . . . . . . . . . . . . . . . Impact 2 | . 2 . . . . . . . . . . . . . . . . . . . . . . . . . . . . . . Slashing . | . . . . . . . . . . . . . . . . . . . . . . . . . . . . . . . . Piercing 2 | . . . . . . . . 2 . . . . . . . . . . . . . . . . . . . . . . . Sneak Attacks 1 | . 1 . . . . . . . . . . . . . . . . . . . . . . . . . . . . . . Combat Hostiles . | . . . . . . . . . . . . . . . . . . . . . . . . . . . . . . . . Follow-up Attacks . | . . . . . . . . . . . . . . . . . . . . . . . . . . . . . . . . Damage Inflicted 57628 | 72 809 208 1362 893 . 558 3404 3933 89 655 . . 2738 210 281 . 177 1719 2308 1598 4276 2632 897 4076 405 3034 . 1531 1852 7463 10448 Guns 33164 | 72 413 . 1202 762 . 265 2329 572 20 . . . 1692 . . . . 417 2308 508 725 1150 897 3284 309 2078 . 1024 1325 3051 8761 Cannons 8273 | . . . . . . . . 1725 30 78 . . 991 210 . . 52 634 . 865 1394 . . 30 . 562 . 44 37 1156 465 Explosions 15118 | . 286 208 144 . . 270 997 1482 39 577 . . 55 . 281 . 125 668 . 225 2120 1482 . 637 . 394 . 463 446 3110 1109 Melee 110 | . 110 . . . . . . . . . . . . . . . . . . . . . . . . . . . . . . Ramming 939 | . . . 16 107 . 23 78 154 . . . . . . . . . . . . 37 . . 125 96 . . . 44 146 113 Kinetic 33034 | 72 161 . 827 762 . 265 2329 506 . . . . 1692 . . . . 417 2308 623 1193 1150 897 3284 309 2078 . 1024 1325 3051 8761 Thermal 5320 | . 252 . 375 24 . . . 281 . 78 . . 220 . . . . 466 . 265 151 224 . 30 . 777 . 44 38 1721 374 Explosive 4786 | . 286 208 144 . . 270 910 746 . 263 . . 55 . . . 104 . . . 1102 321 . 377 . . . . . . . Electromagnetic 13439 | . . . . . . . 87 2246 89 314 . . 771 210 281 . 73 836 . 710 1793 937 . 260 . 179 . 463 445 2545 1200 Impact 110 | . 110 . . . . . . . . . . . . . . . . . . . . . . . . . . . . . . Slashing . | . . . . . . . . . . . . . . . . . . . . . . . . . . . . . . . . Piercing . | . . . . . . . . . . . . . . . . . . . . . . . . . . . . . . . . Highest Corruption 20 | . . . . . . . . 1 . . . 4 13 13 13 13 13 . . . . . . . . . . 2 . 20 13 Average Corruption 8 | . . . . . . . . 1 . . . 4 7 13 13 13 13 . . . . . . . . . . 2 . 10 6 Corruption Purged 22 | . . . . . . . . 1 . . . . . . . . . . . . . . . . . . . . . 7 14 Effects 443 | . . . . . . . . 4 . . . 4 80 63 49 8 33 . . . . . . . . . . 5 . 142 55 Message Errors 80 | . . . . . . . . . . . . 2 18 11 13 . 10 . . . . . . . . . . . . 15 11 Matter Fused 70 | . . . . . . . . . . . . 1 18 10 8 3 5 . . . . . . . . . . . . 19 6 Heat Flow Errors 45 | . . . . . . . . . . . . 1 6 6 6 1 2 . . . . . . . . . . 3 . 13 7 Energy Discharges 40 | . . . . . . . . 1 . . . . 7 12 3 . 5 . . . . . . . . . . . . 8 4 Parts Rejected 3 | . . . . . . . . . . . . . 1 . . . . . . . . . . . . . . . . 2 . Data Loss (minor) 45 | . . . . . . . . 2 . . . . 10 5 7 2 2 . . . . . . . . . . 1 . 10 6 Data Loss (major) 16 | . . . . . . . . . . . . . 3 1 3 . . . . . . . . . . . . . . 7 2 Misfires 13 | . . . . . . . . . . . . . 2 2 2 . 1 . . . . . . . . . . . . 4 2 Alerts 4 | . . . . . . . . . . . . . . 2 . . 1 . . . . . . . . . . . . 1 . Misdirections 41 | . . . . . . . . . . . . . 3 10 5 2 6 . . . . . . . . . . . . 13 2 Targeting Errors 71 | . . . . . . . . 1 . . . . 8 4 1 . 1 . . . . . . . . . . 1 . 42 13 Weapon Failures 15 | . . . . . . . . . . . . . 4 . 1 . . . . . . . . . . . . . . 8 2 Overload Shots 8 | . . . . . . . . 6 . . . . . . . . . . . . 1 . . 1 . . . . . . . Effects 1 | . . . . . . . . . . . . . . . . . . . . . . . . 1 . . . . . . . Meltdown 1 | . . . . . . . . . . . . . . . . . . . . . . . . 1 . . . . . . . Overflow Damage 676 | . 1 10 . . . 5 9 141 . 37 . . 67 . . . . . . 31 121 20 . 3 18 29 . . 4 133 47 Projectiles 315 | . . . . . . . . 10 . 37 . . 67 . . . . . . 31 52 . . . . 27 . . . 91 . Explosions 242 | . 1 10 . . . 5 9 112 . . . . . . . . . . . . 67 20 . 3 . 2 . . . 2 11 Melee 119 | . . . . . . . . 19 . . . . . . . . . . . . 2 . . . 18 . . . 4 40 36 Knockbacks 11 | . . . . 1 . . . 1 . . . . . . . . . . . . 5 . . 1 1 . . . . 2 . Impact 6 | . . . . 1 . . . 1 . . . . . . . . . . . . . . . 1 1 . . . . 2 . Kinetic 4 | . . . . . . . . . . . . . . . . . . . . . 4 . . . . . . . . . . Secondary 1 | . . . . . . . . . . . . . . . . . . . . . 1 . . . . . . . . . . Self-Inflicted Damage 849 | . 62 33 . . . . 175 354 . . . . . . 4 . . . . 1 1 . . 53 . 22 . 19 58 46 21 Shots 43 | . 2 2 . . . . 5 8 . . . . . . 1 . . . . 1 1 . . 2 . 3 . 3 6 6 3 Rammed 48 | . . . 2 4 . 2 5 9 . . . . . . . . . . . . 2 . . 9 4 . . . 2 3 6 Targets Rammed 54 | . . . 2 5 . 2 5 11 . . . . . . . . . . . . 2 . . 9 4 . . . 3 4 7 Kicked . | . . . . . . . . . . . . . . . . . . . . . . . . . . . . . . . . Crushed 6 | . . . . 1 . . . 2 . . . . . . . . . . . . . . . . . . . . 1 1 1 Highest Temperature 562 | . 227 . 75 53 . 107 274 290 112 180 . 366 352 279 215 159 393 9 . 349 471 199 1 132 84 196 226 369 527 562 450 Average Temperature 88 | . 81 . 23 22 . 45 77 66 47 73 . 110 83 97 77 83 118 3 . 68 105 110 1 22 41 72 103 106 117 98 126 Received Heat Transfer 3098 | . 120 . 126 66 . 90 306 345 . 27 . . 104 . 12 . . 47 . 108 261 . 36 576 186 109 . 73 20 151 335 Effects 31 | . . . . . . . . . . . . 2 2 . . . . . . . 2 . . . . . . 6 6 5 8 Shutdowns 12 | . . . . . . . . . . . . . 1 . . . . . . . 1 . . . . . . 1 2 3 4 Energy Bleed 4 | . . . . . . . . . . . . 1 1 . . . . . . . . . . . . . . . . 1 1 Interference 9 | . . . . . . . . . . . . 1 . . . . . . . . . . . . . . . 3 2 1 2 Matter Decay 1 | . . . . . . . . . . . . . . . . . . . . . . . . . . . . 1 . . . Short Circuit 3 | . . . . . . . . . . . . . . . . . . . . . . . . . . . . . 2 . 1 Damage (minor) 2 | . . . . . . . . . . . . . . . . . . . . . 1 . . . . . . 1 . . . Siege Activations 70 | . . . . . . . . . . . . . . . . . . . . 4 5 2 4 7 1 6 . 3 6 17 15 Total Turns 1287 | . . . . . . . . . . . . . . . . . . . . 55 110 19 40 110 9 148 . 46 79 330 341 Longest Duration 83 | . . . . . . . . . . . . . . . . . . . . 16 68 14 13 25 9 45 . 21 31 38 83 Robots Corrupted 46 | . . . . . . . . 4 . 1 . . 4 2 1 . . 2 . 2 7 6 . . . . . 1 . 12 4 Combat Hostiles 44 | . . . . . . . . 4 . 1 . . 3 2 1 . . 2 . 2 6 6 . . . . . 1 . 12 4 Parts Fried 125 | . . . . . . . . 20 . . . . 12 3 2 . . 9 . 7 13 7 . . . . . 7 5 29 11 Impact Corruptions 8 | . . . . . . . . 1 . . . . . . . . . . . . 1 . . . 2 . . . 1 2 1 Robots Melted . | . . . . . . . . . . . . . . . . . . . . . . . . . . . . . . . . Combat Hostiles . | . . . . . . . . . . . . . . . . . . . . . . . . . . . . . . . . Parts Melted 2 | . . . . . . . . . . . . . . . . . . . . . . . . . . . . . 1 1 . Heat Transferred 5053 | . 325 . 445 50 . . . 361 . 50 . . 247 . . . . 472 . 346 250 150 . 37 . 473 . 37 37 1499 274 Parts Sabotaged 12 | . . . . . . . . . . . . . . . . . . . . . . . . . . 6 . . . 3 3 Parts Stolen . | . . . . . . . . . . . . . . . . . . . . . . . . . . . . . . . . Parts Stripped . | . . . . . . . . . . . . . . . . . . . . . . . . . . . . . . . . Power Chain Reactions 25 | . . . . . . . . 3 . 1 . . . . 1 . . 3 . 1 1 1 . . . 2 . . 1 8 3 Missiles Intercepted . | . . . . . . . . . . . . . . . . . . . . . . . . . . . . . . . . Alert | -11 -10 -10 -9 -9 -9 -8 -8 -7 -7 -7 -7 -6 -6 -6 -6 -6 -5 -5 -5 -5 -5 -5 -5 -5 -4 -4 -4 -3 -2 -1 -1 ------- Run | Scr Mat Min Mat Min Exi Min Mat Fac Low Low Zio Pro Fac Low Low Dat Pro Fac Was Fac Ext Cet Arc Hub Fac Arm Lab Res Res Acc Com Peak Influence 2339 | 5 168 69 292 183 . 179 912 790 . . . . 303 . . . . 295 50 364 245 469 231 884 499 876 . 461 743 1745 2339 Initial 1116 | . 3 14 . 113 . . 69 353 . . . . . . . . . 15 50 35 87 14 179 46 373 169 . . 258 396 1116 Average 357 | 2 62 22 107 47 . 79 485 396 . . . . 160 . . . . 138 50 186 95 235 166 348 352 372 . 91 347 965 1395 Maximum Alert Level 5 | . . . 1 . . . 3 3 . . . . 1 . . . . 1 . 1 1 2 1 3 2 3 . 2 3 5 5 Low Security (%) 46 | 100 100 100 85 100 . 100 24 3 . . . . 45 . . . . 91 100 53 92 46 46 38 . 20 . 91 13 . . Level 1 26 | . . . 14 . . . 18 58 . . . . 54 . . . . 8 . 46 7 31 53 22 78 49 . 2 62 5 . Level 2 12 | . . . . . . . 24 35 . . . . . . . . . . . . . 22 . 18 21 26 . 6 20 37 . Level 3 4 | . . . . . . . 32 2 . . . . . . . . . . . . . . . 20 . 4 . . 4 20 . Level 4 6 | . . . . . . . . . . . . . . . . . . . . . . . . . . . . . . 21 80 Level 5 1 | . . . . . . . . . . . . . . . . . . . . . . . . . . . . . . 11 3 High Security 1 | . . . . . . . . . . . . . . . . . . . . . . . . . . . . . . 3 15 Max Security . | . . . . . . . . . . . . . . . . . . . . . . . . . . . . . . . . Squads Dispatched 111 | . 4 . 4 . . 1 5 9 . . . . 9 . . . . 3 . 5 5 . . 8 2 4 . 5 9 20 18 Investigation 21 | . 4 . 2 . . . 2 2 . . . . 1 . . . . . . 2 . . . 1 1 . . 3 . 2 1 Extermination 33 | . . . . . . . . 3 . . . . 7 . . . . 2 . 1 . . . 1 1 2 . . 3 9 4 Reinforcement 26 | . . . 2 . . 1 2 3 . . . . 1 . . . . 1 . 2 5 . . 2 . . . 2 2 1 2 Assault 22 | . . . . . . . . 1 . . . . . . . . . . . . . . . 2 . 2 . . 1 5 11 Garrison 9 | . . . . . . . 1 . . . . . . . . . . . . . . . . 2 . . . . 3 3 . Intercept . | . . . . . . . . . . . . . . . . . . . . . . . . . . . . . . . . Construction Impeded 13 | . . . . . . 1 1 2 . . . . . . . . . . . 1 4 . . 1 . . . . 2 1 . Haulers Reinforced 1 | . . . . . . . . . . . . . . . . . . . . 1 . . . . . . . . . . . Stealth | -11 -10 -10 -9 -9 -9 -8 -8 -7 -7 -7 -7 -6 -6 -6 -6 -6 -5 -5 -5 -5 -5 -5 -5 -5 -4 -4 -4 -3 -2 -1 -1 --------- Run | Scr Mat Min Mat Min Exi Min Mat Fac Low Low Zio Pro Fac Low Low Dat Pro Fac Was Fac Ext Cet Arc Hub Fac Arm Lab Res Res Acc Com Distress Signals 30 | . 2 1 4 . . . 4 2 . . . . . . . . . . . 1 3 2 . 2 1 . . 3 1 . 4 Communications Jammed . | . . . . . . . . . . . . . . . . . . . . . . . . . . . . . . . . Distress Signals . | . . . . . . . . . . . . . . . . . . . . . . . . . . . . . . . . Times Spotted 630 | . 17 5 25 9 . 7 47 48 1 5 . . 20 2 4 . 1 15 6 15 35 11 5 44 9 42 . 33 31 81 112 Peak Tracking Total 29 | . 5 3 3 3 . 3 7 7 1 4 . . 2 2 3 . 2 5 2 3 6 5 1 9 6 10 . 6 6 7 29 Tactical Retreats 35 | . 1 1 1 . . . 4 1 . . . . . . 1 . . . . . 3 . . 3 . 4 . 2 6 2 6 Traps | -11 -10 -10 -9 -9 -9 -8 -8 -7 -7 -7 -7 -6 -6 -6 -6 -6 -5 -5 -5 -5 -5 -5 -5 -5 -4 -4 -4 -3 -2 -1 -1 ------- Run | Scr Mat Min Mat Min Exi Min Mat Fac Low Low Zio Pro Fac Low Low Dat Pro Fac Was Fac Ext Cet Arc Hub Fac Arm Lab Res Res Acc Com Traps Triggered 25 | . 2 . . . . . . 3 . . . . 3 . . . . 1 . 2 4 . . . 1 1 . 1 . 6 1 Indirectly 2 | . . . . . . . . . . . . . . . . . . . . . . . . . . . . . . 2 . Trap Hack Attempts . | . . . . . . . . . . . . . . . . . . . . . . . . . . . . . . . . Triggered . | . . . . . . . . . . . . . . . . . . . . . . . . . . . . . . . . Disarmed . | . . . . . . . . . . . . . . . . . . . . . . . . . . . . . . . . Reprogrammed . | . . . . . . . . . . . . . . . . . . . . . . . . . . . . . . . . Reused . | . . . . . . . . . . . . . . . . . . . . . . . . . . . . . . . . Traps Extracted . | . . . . . . . . . . . . . . . . . . . . . . . . . . . . . . . . Installed . | . . . . . . . . . . . . . . . . . . . . . . . . . . . . . . . . Triggered 3 | . . . . . . . . . . . . . . . 2 . . . . . . . . . . . . 1 . . . Machines | -11 -10 -10 -9 -9 -9 -8 -8 -7 -7 -7 -7 -6 -6 -6 -6 -6 -5 -5 -5 -5 -5 -5 -5 -5 -4 -4 -4 -3 -2 -1 -1 ---------- Run | Scr Mat Min Mat Min Exi Min Mat Fac Low Low Zio Pro Fac Low Low Dat Pro Fac Was Fac Ext Cet Arc Hub Fac Arm Lab Res Res Acc Com Machines Disabled 80 | . 2 . . 1 . 1 6 7 . 1 . . 9 . . . . 7 . 1 7 . 2 9 3 11 6 1 1 2 3 Max in Single Turn 6 | . 2 . . 1 . 1 4 1 . 1 . . 6 . . . . 3 . 1 2 . 1 1 2 1 1 1 1 1 1 Garrison Access 7 | . . . . . . . 1 1 . . . . . . . . . . . 3 . . . 1 . . . 1 . . . Machines Sabotaged . | . . . . . . . . . . . . . . . . . . . . . . . . . . . . . . . . Garrisons Compromised . | . . . . . . . . . . . . . . . . . . . . . . . . . . . . . . . . Overloaded Fab Kills . | . . . . . . . . . . . . . . . . . . . . . . . . . . . . . . . . Fab Network Shutdowns . | . . . . . . . . . . . . . . . . . . . . . . . . . . . . . . . . Hacking | -11 -10 -10 -9 -9 -9 -8 -8 -7 -7 -7 -7 -6 -6 -6 -6 -6 -5 -5 -5 -5 -5 -5 -5 -5 -4 -4 -4 -3 -2 -1 -1 --------- Run | Scr Mat Min Mat Min Exi Min Mat Fac Low Low Zio Pro Fac Low Low Dat Pro Fac Was Fac Ext Cet Arc Hub Fac Arm Lab Res Res Acc Com Machines Accessed 103 | . 9 2 10 . 2 . 4 14 1 3 . . 7 1 1 4 . 5 . 10 2 1 . 5 1 6 1 4 1 6 3 Terminals 63 | . 7 . 6 . . . 2 10 . . . . 7 . . . . 4 . 3 2 1 . 4 1 4 . 3 1 5 3 Fabricators 5 | . . . . . . . . 1 . . . . . . . . . 1 . 1 . . . . . 2 . . . . . Repair Stations 6 | . . . 1 . . . 1 1 . . . . . . . . . . . 3 . . . . . . . . . . . Recycling Units 5 | . 2 . 2 . . . . 1 . . . . . . . . . . . . . . . . . . . . . . . Scanalyzers 1 | . . . 1 . . . . . . . . . . . . . . . . . . . . . . . . . . . . Garrison Access 8 | . . . . . . . 1 1 . . . . . . . . . . . 3 . . . 1 . . . 1 . 1 . Total Hacks 276 | . 38 2 22 . 2 . 10 39 1 9 . . 20 1 1 20 . 15 . 20 5 2 . 13 3 11 18 7 2 11 4 Successful 159 | . 21 2 15 . 2 . 4 21 1 9 . . 6 1 1 20 . 10 . 8 3 1 . 3 1 6 18 4 1 1 . Failed 117 | . 17 . 7 . . . 6 18 . . . . 14 . . . . 5 . 12 2 1 . 10 2 5 . 3 1 10 4 Catastrophic 19 | . 2 . 1 . . . . 4 . . . . 3 . . . . . . . . . . 2 . 2 . 1 1 3 . Database Lockouts . | . . . . . . . . . . . . . . . . . . . . . . . . . . . . . . . . Manual 117 | . 26 . 8 . 1 . 6 12 . . . . 16 . . . . 7 . 10 5 1 . 11 . 3 . 4 1 3 3 Terminals 173 | . 34 . 15 . . . 5 31 . . . . 20 . . . . 12 . 8 5 2 . 11 3 6 . 6 2 9 4 Fabricators 11 | . . . . . . . . 1 . . . . . . . . . 3 . 2 . . . . . 5 . . . . . Repair Stations 12 | . . . 2 . . . 2 2 . . . . . . . . . . . 6 . . . . . . . . . . . Recycling Units 9 | . 4 . 2 . . . . 3 . . . . . . . . . . . . . . . . . . . . . . . Scanalyzers 3 | . . . 3 . . . . . . . . . . . . . . . . . . . . . . . . . . . . Garrison Access 14 | . . . . . . . 3 2 . . . . . . . . . . . 4 . . . 2 . . . 1 . 2 . Terminal Hacks 102 | . 15 2 5 . 2 . 1 9 1 9 . . 3 1 1 20 . 5 . 2 3 1 . 1 1 1 18 1 . . . Record 38 | . . . . . 1 . . . 1 7 . . . . . 11 . . . . . . . . . . 18 . . . . Part Schematic 3 | . 1 . . . . . . . . . . . . . . 2 . . . . . . . . . . . . . . . Robot Schematic 4 | . . . . . . . . . . . . . . . . 4 . . . . . . . . . . . . . . . Robot Analysis 4 | . 3 . . . . . . 1 . . . . . . . . . . . . . . . . . . . . . . . Prototype ID Bank 9 | . 4 . 1 . . . . 1 . . . . . . . 3 . . . . . . . . . . . . . . . Open Door 8 | . . 2 . . . . . . . 2 . . . 1 1 . . . . . . 1 . . . 1 . . . . . Branch Access Points 3 | . . . . . . . . 1 . . . . 1 . . . . . . 1 . . . . . . . . . . . Terminal Index 3 | . 1 . . . . . . 1 . . . . . . . . . 1 . . . . . . . . . . . . . Fabricator Index 1 | . . . . . . . . 1 . . . . . . . . . . . . . . . . . . . . . . . Recycling Unit Index 2 | . 1 . 1 . . . . . . . . . . . . . . . . . . . . . . . . . . . . Alert Level 2 | . . . . . . . . . . . . . . . . . . 1 . . . . . . 1 . . . . . . Unreport Threat 9 | . . . . . . . 1 2 . . . . . . . . . 1 . 1 3 . . 1 . . . . . . . Locate Traps 7 | . 1 . 1 . . . . 1 . . . . 1 . . . . 2 . . . . . . . . . 1 . . . Recall Investigation 1 | . 1 . . . . . . . . . . . . . . . . . . . . . . . . . . . . . . Hauler Manifests 2 | . 1 . 1 . . . . . . . . . . . . . . . . . . . . . . . . . . . . Zone Layout 5 | . 2 . 1 . . . . 1 . . . . 1 . . . . . . . . . . . . . . . . . . EX-Prototype ID Bank 1 | . . . . . 1 . . . . . . . . . . . . . . . . . . . . . . . . . . Fabricator Hacks 7 | . . . . . . . . 1 . . . . . . . . . 2 . 1 . . . . . 3 . . . . . Load Schematic 2 | . . . . . . . . . . . . . . . . . . 1 . . . . . . . 1 . . . . . Build 5 | . . . . . . . . 1 . . . . . . . . . 1 . 1 . . . . . 2 . . . . . Repair Station Hacks 7 | . . . 2 . . . 2 2 . . . . . . . . . . . 1 . . . . . . . . . . . Scan Component 4 | . . . 1 . . . 1 1 . . . . . . . . . . . 1 . . . . . . . . . . . Repair 3 | . . . 1 . . . 1 1 . . . . . . . . . . . . . . . . . . . . . . . Recycling Unit Hacks 2 | . . . . . . . . 2 . . . . . . . . . . . . . . . . . . . . . . . Report Inventory 1 | . . . . . . . . 1 . . . . . . . . . . . . . . . . . . . . . . . Retrieve Components 1 | . . . . . . . . 1 . . . . . . . . . . . . . . . . . . . . . . . Scanalyzer 3 | . . . 3 . . . . . . . . . . . . . . . . . . . . . . . . . . . . Insert Component 2 | . . . 2 . . . . . . . . . . . . . . . . . . . . . . . . . . . . Analyze 1 | . . . 1 . . . . . . . . . . . . . . . . . . . . . . . . . . . . Garrison Access Hacks 1 | . . . . . . . . . . . . . . . . . . . . 1 . . . . . . . . . . . Seal Access 1 | . . . . . . . . . . . . . . . . . . . . 1 . . . . . . . . . . . Unauthorized Hacks 37 | . 6 . 5 . . . 1 7 . . . . 3 . . . . 3 . 3 . . . 2 . 2 . 3 1 1 . Terminals 27 | . 5 . 3 . . . . 6 . . . . 3 . . . . 3 . 1 . . . 2 . . . 2 1 1 . Track 5 | . 4 . 1 . . . . . . . . . . . . . . . . . . . . . . . . . . . . Assimilate 4 | . . . . . . . . 1 . . . . 1 . . . . 1 . . . . . 1 . . . . . . . Botnet 15 | . . . 2 . . . . 4 . . . . 2 . . . . 1 . 1 . . . 1 . . . 2 1 1 . Operators 3 | . 1 . . . . . . 1 . . . . . . . . . 1 . . . . . . . . . . . . . Fabricators 2 | . . . . . . . . . . . . . . . . . . . . . . . . . . 2 . . . . . Prioritize 2 | . . . . . . . . . . . . . . . . . . . . . . . . . . 2 . . . . . Repair Stations . | . . . . . . . . . . . . . . . . . . . . . . . . . . . . . . . . Recycling Units 3 | . 1 . 2 . . . . . . . . . . . . . . . . . . . . . . . . . . . . Tunnel 3 | . 1 . 2 . . . . . . . . . . . . . . . . . . . . . . . . . . . . Scanalyzers . | . . . . . . . . . . . . . . . . . . . . . . . . . . . . . . . . Garrison Access 5 | . . . . . . . 1 1 . . . . . . . . . . . 2 . . . . . . . 1 . . . Jam 5 | . . . . . . . 1 1 . . . . . . . . . . . 2 . . . . . . . 1 . . . Data Cores Recovered 1 | . . . . . . . . . . . . . 1 . . . . . . . . . . . . . . . . . . Used . | . . . . . . . . . . . . . . . . . . . . . . . . . . . . . . . . Hacking Detections 74 | . 8 . 8 . . . 4 11 . . . . 7 . . . . 4 . 8 2 . . 5 1 3 . 3 1 6 3 Full Trace Events 7 | . 2 . . . . . 1 . . . . . 1 . . . . . . . . . . 1 . . . . . 2 . Feedback Events . | . . . . . . . . . . . . . . . . . . . . . . . . . . . . . . . . Feedback Blocked . | . . . . . . . . . . . . . . . . . . . . . . . . . . . . . . . . Robot Schematics Acquired 4 | . . . . . . . . . . . . . . . . 4 . . . . . . . . . . . . . . . Robots Built . | . . . . . . . . . . . . . . . . . . . . . . . . . . . . . . . . Matter . | . . . . . . . . . . . . . . . . . . . . . . . . . . . . . . . . Time . | . . . . . . . . . . . . . . . . . . . . . . . . . . . . . . . . Total Robot Build Rating . | . . . . . . . . . . . . . . . . . . . . . . . . . . . . . . . . Part Schematics Acquired 4 | . 1 . 1 . . . . . . . . . . . . 2 . . . . . . . . . . . . . . . Parts Built 7 | . . . . . . . . 2 . . . . . . . . . 1 . 1 . . . . . 3 . . . . . Matter 1261 | . . . . . . . . 234 . . . . . . . . . 285 . 318 . . . . . 424 . . . . . Time 430 | . . . . . . . . 58 . . . . . . . . . 76 . 84 . . . . . 212 . . . . . Total Part Build Rating 40 | . . . . . . . . 14 . . . . . . . . . 5 . 6 . . . . . 15 . . . . . Parts Repaired 3 | . . . 1 . . . 1 1 . . . . . . . . . . . . . . . . . . . . . . . Time 116 | . . . 26 . . . 60 30 . . . . . . . . . . . . . . . . . . . . . . . Parts Recycled . | . . . . . . . . . . . . . . . . . . . . . . . . . . . . . . . . Recycled Matter . | . . . . . . . . . . . . . . . . . . . . . . . . . . . . . . . . Retrieved Matter . | . . . . . . . . . . . . . . . . . . . . . . . . . . . . . . . . Retrieved Components 3 | . . . . . . . . 3 . . . . . . . . . . . . . . . . . . . . . . . Parts Scanalyzed 1 | . . . 1 . . . . . . . . . . . . . . . . . . . . . . . . . . . . Part Schematics Acquired 1 | . . . 1 . . . . . . . . . . . . . . . . . . . . . . . . . . . . Parts Damaged . | . . . . . . . . . . . . . . . . . . . . . . . . . . . . . . . . Bothacking | -11 -10 -10 -9 -9 -9 -8 -8 -7 -7 -7 -7 -6 -6 -6 -6 -6 -5 -5 -5 -5 -5 -5 -5 -5 -4 -4 -4 -3 -2 -1 -1 ------------ Run | Scr Mat Min Mat Min Exi Min Mat Fac Low Low Zio Pro Fac Low Low Dat Pro Fac Was Fac Ext Cet Arc Hub Fac Arm Lab Res Res Acc Com Used RIF Installer . | . . . . . . . . . . . . . . . . . . . . . . . . . . . . . . . . Robots Hacked 1 | . . . . . . . . . . . . . . . . . . 1 . . . . . . . . . . . . . Non-combat 1 | . . . . . . . . . . . . . . . . . . 1 . . . . . . . . . . . . . Combat . | . . . . . . . . . . . . . . . . . . . . . . . . . . . . . . . . Robot Hacks Applied 1 | . . . . . . . . . . . . . . . . . . 1 . . . . . . . . . . . . . find_chute 1 | . . . . . . . . . . . . . . . . . . 1 . . . . . . . . . . . . . Relay Couplers Released 4 | . . . . . . . . . . . . . . . . . . . . . . . . 1 . . . 3 . . . Machine Destruction 1 | . . . . . . . . . . . . . . . . . . . . . . . . 1 . . . . . . . Programmers 3 | . . . . . . . . . . . . . . . . . . . . . . . . . . . . 3 . . . Robots Rewired 8 | . . . . . . . . . . . . . . . . . . . . . 6 . . . 1 1 . . . . . Allies Hacked . | . . . . . . . . . . . . . . . . . . . . . . . . . . . . . . . . Hacks Repelled . | . . . . . . . . . . . . . . . . . . . . . . . . . . . . . . . . Allies | -11 -10 -10 -9 -9 -9 -8 -8 -7 -7 -7 -7 -6 -6 -6 -6 -6 -5 -5 -5 -5 -5 -5 -5 -5 -4 -4 -4 -3 -2 -1 -1 -------- Run | Scr Mat Min Mat Min Exi Min Mat Fac Low Low Zio Pro Fac Low Low Dat Pro Fac Was Fac Ext Cet Arc Hub Fac Arm Lab Res Res Acc Com Total Allies 34 | . . . . . . . . . . . . . . . . . 1 . . . 16 5 . . 1 11 . . . . . Largest Group 10 | . . . . . . . . . . . . . . . . . 1 . . . 8 6 . . 1 10 . . . . . Highest-Rated Group 620 | . . . . . . . . . . . . . . . . . 94 . . . 254 620 . . 49 481 . . . . . Highest-Rated Ally 156 | . . . . . . . . . . . . . . . . . 94 . . . 156 156 . . 49 60 . . . . . Total Orders 17 | . . . . . . . . . . 2 . 2 1 . 1 . 1 . . . 1 3 . . 2 1 . 2 1 . . STAY 4 | . . . . . . . . . . . . . . . . . . . . . . 2 . . 1 1 . . . . . ROAM 1 | . . . . . . . . . . . . . . . . . . . . . . 1 . . . . . . . . . RETURN 12 | . . . . . . . . . . 2 . 2 1 . 1 . 1 . . . 1 . . . 1 . . 2 1 . . Ally Attacks 136 | . . . . . . . . . . . . . . . . . 12 . . . 68 37 . . 7 12 . . . . . Total Damage 3832 | . . . . . . . . . . . . . . . . . 514 . . . 1307 1358 . . 299 354 . . . . . Kills 26 | . . . . . . . . . . . . . . . . . 5 . . . 7 8 . . 4 2 . . . . . Allies Corrupted . | . . . . . . . . . . . . . . . . . . . . . . . . . . . . . . . . Allies Melted 1 | . . . . . . . . . . . . . . . . . . . . . . 1 . . . . . . . . . Intel | -11 -10 -10 -9 -9 -9 -8 -8 -7 -7 -7 -7 -6 -6 -6 -6 -6 -5 -5 -5 -5 -5 -5 -5 -5 -4 -4 -4 -3 -2 -1 -1 ------- Run | Scr Mat Min Mat Min Exi Min Mat Fac Low Low Zio Pro Fac Low Low Dat Pro Fac Was Fac Ext Cet Arc Hub Fac Arm Lab Res Res Acc Com Robot Analysis Total 4 | . 3 . . . . . . 1 . . . . . . . . . . . . . . . . . . . . . . . Derelict Logs Recovered 5 | . . 1 . 1 . . . . . 1 . . . 1 . . 1 . . . . . . . . . . . . . . Drone Launches 16 | . . . . . . . . . 1 2 . 2 1 2 1 . . . . . 3 . . . 1 . . 2 1 . . Drone Recoveries 15 | . . . . . . . . . . 2 . 3 1 . 1 . 1 . . . 3 . . . 1 . . 2 1 . . Exploration | -11 -10 -10 -9 -9 -9 -8 -8 -7 -7 -7 -7 -6 -6 -6 -6 -6 -5 -5 -5 -5 -5 -5 -5 -5 -4 -4 -4 -3 -2 -1 -1 ------------- Run | Scr Mat Min Mat Min Exi Min Mat Fac Low Low Zio Pro Fac Low Low Dat Pro Fac Was Fac Ext Cet Arc Hub Fac Arm Lab Res Res Acc Com Turns Passed 42687 | 32 1301 1340 1444 1631 624 395 1587 3353 1395 1748 1064 1044 2612 1464 1143 152 733 1158 376 1692 1729 550 727 856 799 1603 1832 1790 1628 2926 1959 Spaces Moved 19972 | 12 781 478 724 664 345 185 585 1656 940 1034 710 567 1458 858 676 98 428 551 180 894 756 221 112 332 365 635 251 875 565 1268 768 Core 26 | . . . . . . . . . . . . . . . . . . . . . . . . . . . 26 . . . . Treads 8956 | 4 208 373 378 664 345 185 585 729 . . . . . 62 . . . . . . 57 221 112 332 365 635 225 875 565 1268 768 Legs . | . . . . . . . . . . . . . . . . . . . . . . . . . . . . . . . . Wheels 10990 | 8 573 105 346 . . . . 927 940 1034 710 567 1458 796 676 98 428 551 180 894 699 . . . . . . . . . . Hover . | . . . . . . . . . . . . . . . . . . . . . . . . . . . . . . . . Flight . | . . . . . . . . . . . . . . . . . . . . . . . . . . . . . . . . Fastest Speed 100 | 100 100 120 140 180 180 180 175 140 140 140 150 140 140 150 150 150 150 150 150 150 150 160 180 160 160 160 165 165 156 156 156 Average Speed 164 | 120 138 182 160 180 180 180 175 168 146 149 150 149 149 161 158 150 159 150 151 155 160 178 180 171 179 172 463 165 156 166 162 Slowest Speed 3050 | 160 200 200 180 180 180 180 180 280 150 150 150 150 150 260 160 160 160 150 160 160 200 180 180 180 180 180 3050 187 179 179 179 Overloaded Moves . | . . . . . . . . . . . . . . . . . . . . . . . . . . . . . . . . Propulsion Burnouts . | . . . . . . . . . . . . . . . . . . . . . . . . . . . . . . . . Robots Hopped . | . . . . . . . . . . . . . . . . . . . . . . . . . . . . . . . . Cave-ins Triggered 1 | . . . . . . . . . . . . 1 . . . . . . . . . . . . . . . . . . . Teleports 1 | . . . . . . . . . . . . . . . . . . . . . . . . . . . 1 . . . . Exploration Rate (%) 61 | 2 96 99 78 99 70 33 48 54 97 98 84 73 47 85 89 70 61 15 80 31 83 73 75 35 14 47 99 45 14 41 30 Regions Visited 31 Branch Regions 19 Pre-discovered Areas 8 | . 1 . 2 . 1 . . . . 1 . . . 1 . 1 1 . . . . . . . . . . . . . . Known Exits Taken 10 | . . . . . . . . 1 1 1 . 1 1 . . . 1 . . 1 1 . . . . . . 1 1 . . Unknown Exits Taken 19 | 1 1 1 1 1 1 1 1 . . . 1 . . 1 1 1 . . . . . 1 1 1 1 1 1 . . 1 . Scrap Searched 24 | . . 1 . 1 . . . . 2 4 3 4 . 5 2 . 2 . . . . . . . . . . . . . . Spaces Dug 370 | . 11 . 2 4 . . 20 33 3 11 . 19 22 3 18 . 8 19 . 28 . . . 5 6 21 12 25 43 43 14 Terrain Destroyed 1103 | . 51 30 12 5 . 27 92 130 3 39 . 19 62 3 19 . 47 97 . 35 33 84 5 71 10 27 14 25 51 77 35 Melee 3 | . 1 . . . . . . 2 . . . . . . . . . . . . . . . . . . . . . . . Projectile 471 | . 9 . 5 5 . . 8 41 3 12 . 19 24 3 12 . 8 21 . 33 . 29 5 50 10 21 14 25 46 47 21 AOE 629 | . 41 30 7 . . 27 84 87 . 27 . . 38 . 7 . 39 76 . 2 33 55 . 21 . 6 . . 5 30 14 Terrain Rammed . | . . . . . . . . . . . . . . . . . . . . . . . . . . . . . . . . Walls Destroyed . | . . . . . . . . . . . . . . . . . . . . . . . . . . . . . . . . Machines Disabled . | . . . . . . . . . . . . . . . . . . . . . . . . . . . . . . . . Actions | -11 -10 -10 -9 -9 -9 -8 -8 -7 -7 -7 -7 -6 -6 -6 -6 -6 -5 -5 -5 -5 -5 -5 -5 -5 -4 -4 -4 -3 -2 -1 -1 --------- Run | Scr Mat Min Mat Min Exi Min Mat Fac Low Low Zio Pro Fac Low Low Dat Pro Fac Was Fac Ext Cet Arc Hub Fac Arm Lab Res Res Acc Com Total 27623 | 22 922 942 921 1040 350 230 1025 2031 952 1208 709 741 1766 921 730 103 462 821 241 1106 1147 321 616 493 493 1036 891 1107 1202 1839 1235 Wait 4425 | . 51 452 58 324 . 29 303 106 4 142 . 154 107 27 31 . 8 158 3 93 138 10 488 47 80 145 580 78 472 184 153 Move 19941 | 11 780 477 723 663 344 184 584 1655 939 1033 709 565 1457 857 675 97 427 551 179 893 755 220 111 331 364 634 250 874 564 1267 768 Hop . | . . . . . . . . . . . . . . . . . . . . . . . . . . . . . . . . Pick Up 289 | . 21 3 26 2 1 . 12 31 . 2 . . 28 5 1 . 2 11 9 6 7 16 3 6 5 28 1 12 6 29 16 Fast Attach 151 | 1 2 2 8 . . . . 8 . 2 . . 7 6 . 3 2 12 3 6 8 8 . 2 3 17 6 14 8 12 11 Attach 158 | 1 3 . 3 . . . 7 10 1 . . 1 8 2 . . . 3 3 2 7 8 . 9 6 10 2 9 9 28 26 Detach 87 | . . . 1 . . . . 6 1 . . . 4 . . . 1 2 3 3 2 2 . 4 5 9 2 1 8 19 14 Swap 436 | . 12 1 14 7 2 2 20 35 2 4 . 1 43 4 5 . 6 16 . 28 20 8 . 15 8 30 2 19 24 55 53 Drop 392 | 4 14 3 30 3 3 . 4 35 . 3 . . 30 11 2 3 3 22 17 12 10 23 3 5 4 45 4 23 11 35 30 Fire 1523 | 5 37 4 56 36 . 13 90 124 5 22 . 19 82 9 15 . 13 46 24 55 65 26 11 65 12 108 44 77 97 206 157 Melee 4 | . 2 . . . . . . 2 . . . . . . . . . . . . . . . . . . . . . . . Ram 1 | . . . . . . . . 1 . . . . . . . . . . . . . . . . . . . . . . . Kick . | . . . . . . . . . . . . . . . . . . . . . . . . . . . . . . . . Crush 53 | . . . 2 5 . 2 5 10 . . . . . . . . . . . . 2 . . 9 4 . . . 3 4 7 Escape Stasis 35 | . . . . . . . . . . . . 1 . . . . . . . 8 24 . . . . 2 . . . . . Rewire 128 | . . . . . . . . 8 . . . . . . 1 . . . . . 109 . . . 2 8 . . . . . Trap . | . . . . . . . . . . . . . . . . . . . . . . . . . . . . . . . . Miscellaneous . | . . . . . . . . . . . . . . . . . . . . . . . . . . . . . . . . Route ------- -11/Scrapyard -10/Materials (discovered 4 exits: *Mat x3 / *Min) -10/Mines (discovered 2 exits: *Mat x2) -9/Materials (discovered 4 exits: *Mat x2 / [*Min] / [*Sto]) -9/Mines (discovered 3 exits: *Mat x2 / *Exi) -9/Exiles -8/Mines -8/Materials -7/Factory (discovered 3 exits: *Fac / *Low x2) -7/Lower Caves -7/Lower Caves (discovered 2 exits: *Fac / *Zio) -7/Zion -6/Proximity Caves -6/Factory (discovered 4 exits: *Fac x2 / *Low x2) -6/Lower Caves -6/Lower Caves (discovered 2 exits: *Fac / *Dat) -6/Data Miner -5/Proximity Caves -5/Factory -5/Waste -5/Factory (discovered 5 exits: *Fac / Upp x2 / *Ext x2) -5/Extension (discovered 2 exits: *Fac / *Cet) -5/Cetus (discovered 2 exits: *Fac / [*Arc]) -5/Archives (discovered 3 exits: *Fac / *Hub x2) -5/Hub_04(d) (discovered 2 exits: *Fac x2) -4/Factory (discovered 2 exits: *Upp / *Arm) -4/Armory (discovered 3 exits: Res x2 / *Lab) -4/Lab -3/Research (discovered 3 exits: *Res x2 / [Qua]) -2/Research (discovered 2 exits: *Acc x2) -1/Access -1/Command (discovered 1 exit: [Sur]) History --------- Turn | Location | Event 18 | -11/Scrapyard | Discovered new exit (range 3) 33 | -11/Scrapyard | Entered Materials 152 | -10/Materials | Discovered new exit (range 16) 314 | -10/Materials | Build established: Mutant 387 | -10/Materials | Discovered new exit (range 16) 545 | -10/Materials | Discovered new exit (range 13) 557 | -10/Materials | Discovered new exit (range 14) 1334 | -10/Materials | Entered Mines 1478 | -10/Mines | A weapon hastily lodged in a ceiling crevice suddenly fell to the ground 1753 | -10/Mines | Learned Materials garrison access intel 1799 | -10/Mines | Discovered new exit (range 15) 1935 | -10/Mines | Discovered new exit (range 13) 2143 | -10/Mines | Found the Drone Emporium 2151 | -10/Mines | Found Prototype Device 2151 | -10/Mines | Identified Sensor Drone Bay 2215 | -10/Mines | Met a Derelict who couldn't figure out how to use a Trap Extractor 2674 | -10/Mines | Entered Materials 2674 | -9/Materials | Evolved 2 slots: Propulsion x1, Utility x1 2912 | -9/Materials | Discovered new exit (range 11) 2983 | -9/Materials | Build established: Hauler-Mutant 3229 | -9/Materials | Discovered new exit (range 16) 3290 | -9/Materials | Repaired Lgt. Treads 3619 | -9/Materials | Discovered new exit (range 13) 3826 | -9/Materials | Discovered new exit (range 11) 4118 | -9/Materials | Entered Mines 4119 | -9/Mines | Assembled infested the area 4124 | -9/Mines | Assisted by a Guerilla fighting off Assembled 4761 | -9/Mines | Discovered new exit (range 3) 4768 | -9/Mines | Received a Rocket Launcher from a helpful Derelict 5144 | -9/Mines | Deemed a non-threat by the Exiles lab entrance 5144 | -9/Mines | Discovered new exit (range 5) 5229 | -9/Mines | Learned Materials trap positions 5603 | -9/Mines | Discovered new exit (range 9) 5749 | -9/Mines | Entered Exiles 5796 | -9/Exiles | Met 8R-AWN 5829 | -9/Exiles | Met EX-HEX 5910 | -9/Exiles | Met EX-DEC 5940 | -9/Exiles | Learned location of Zion (-7) 5987 | -9/Exiles | Met EX-BIN 6007 | -9/Exiles | Aligned with FarCom system 6009 | -9/Exiles | Given EX-Vault access code 6052 | -9/Exiles | Opened EX-Vault 6065 | -9/Exiles | Found Cloak of Protection 6107 | -9/Exiles | Warned to stay clear of 0b10 Research branches 6356 | -9/Exiles | Discovered new exit (range 11) 6373 | -9/Exiles | Left Exiles lab with Cloak of Protection 6373 | -9/Exiles | Entered Mines 6698 | -8/Mines | Discovered new exit (range 13) 6768 | -8/Mines | Entered Materials 6768 | -8/Materials | Evolved 2 slots: Utility x1, Weapon x1 6769 | -8/Materials | Loaded intel: 7 trap records 6770 | -8/Materials | Loaded intel: 1 garrison access location 7179 | -8/Materials | Garrison activated, responded to threat 7479 | -8/Materials | Build established: Hauler-Skirmisher 7614 | -8/Materials | Destroyed 9 combat bots 7682 | -8/Materials | Repaired Enh. Autogun? 8127 | -8/Materials | Discovered new exit (range 8) 8355 | -8/Materials | Entered Factory 8355 | -7/Factory | Evolved 2 slots: Utility x2 9447 | -7/Factory | Repaired Enh. Autogun 9480 | -7/Factory | Build established: Hauler-Mutant 9632 | -7/Factory | Fabricated Hvy. Neutron Cannon? 9641 | -7/Factory | Lost 3 parts (1n2u) 10252 | -7/Factory | Identified exit to Lower Caves 10306 | -7/Factory | Discovered new exit (range 5) 11555 | -7/Factory | First assault squad dispatched 11708 | -7/Factory | Entered Lower Caves 12034 | -7/Lower Caves | Build established: Hauler-Gunner 12496 | -7/Lower Caves | Build established: Hauler-Mutant 12785 | -7/Lower Caves | Discovered new exit (range 13) 12910 | -7/Lower Caves | Identified exit to Lower Caves 13103 | -7/Lower Caves | Entered another Lower Caves area 13103 | -7/Lower Caves | Accompanied by 1 ally 13157 | -7/Lower Caves | Discovered new exit (range 11) 13928 | -7/Lower Caves | Learned Factory garrison access intel 14391 | -7/Lower Caves | Discovered new exit (range 11) 14432 | -7/Lower Caves | Learned Research security intel 14432 | -7/Lower Caves | Learned Research terminal intel 14432 | -7/Lower Caves | Learned Armory garrison access intel 14850 | -7/Lower Caves | Identified exit to Zion 14851 | -7/Lower Caves | Entered Zion 14851 | -7/Zion | Accompanied by 1 ally 14896 | -7/Zion | Discovered new exit (range 14) 15067 | -7/Zion | Acquired unknown access codes intercepted by a Zionite 15447 | -7/Zion | Rebuked by Imprinter 15915 | -7/Zion | Entered Proximity Caves 15915 | -6/Proximity Caves | Accompanied by 1 ally 16730 | -6/Proximity Caves | Crushed by falling debris 16770 | -6/Proximity Caves | Received a Behemoth hack from an annoying Tinkerer 16939 | -6/Proximity Caves | Discovered new exit (range 8) 16956 | -6/Proximity Caves | Identified exit to Factory 16959 | -6/Proximity Caves | Entered Factory 16959 | -6/Factory | Evolved 2 slots: Utility x2 16960 | -6/Factory | Loaded intel: 4 garrison access locations 17428 | -6/Factory | Discovered new exit (range 15) 17481 | -6/Factory | Identified exit to Factory 18054 | -6/Factory | Build established: Hauler-Tank 18387 | -6/Factory | Discovered exit to Factory (range 10) 18812 | -6/Factory | Identified exit to Lower Caves 18914 | -6/Factory | System corruption reached 10% 19389 | -6/Factory | Build established: Hauler-Mutant 19571 | -6/Factory | Entered Lower Caves 20214 | -6/Lower Caves | Discovered new exit (range 16) 20219 | -6/Lower Caves | Found Alien Artifact 20219 | -6/Lower Caves | Identified Core Expander 20219 | -6/Lower Caves | Installed Core Expander, added new Propulsion slot 21035 | -6/Lower Caves | Entered another Lower Caves area 21035 | -6/Lower Caves | Accompanied by 1 ally 21036 | -6/Lower Caves | Encountered a Warlord checkpoint 21038 | -6/Lower Caves | Discovered exit to Factory (range 16) 22095 | -6/Lower Caves | Discovered new exit (range 15) 22178 | -6/Lower Caves | Entered Data Miner 22178 | -6/Data Miner | Accompanied by 1 ally 22179 | -6/Data Miner | Discovered new exit (range 7) 22208 | -6/Data Miner | Met Data Miner 22235 | -6/Data Miner | Learned location of Section 7 (-2) 22235 | -6/Data Miner | Acquired the access code to Warlord's prototype stash 22265 | -6/Data Miner | Received God Mode back door access code from Data Miner 22330 | -6/Data Miner | Entered Proximity Caves 22330 | -5/Proximity Caves | Accompanied by 1 ally 22605 | -5/Proximity Caves | Escorted by Enhanced Grunt 22753 | -5/Proximity Caves | Attracted the attention of an 0b10 checkpoint 22770 | -5/Proximity Caves | Discovered exit to Factory (range 20) 23063 | -5/Proximity Caves | Entered Factory 23063 | -5/Factory | Evolved 2 slots: Utility x1, Weapon x1 23356 | -5/Factory | Discovered new exit (range 16) 24170 | -5/Factory | Fabricated Exp. Terrain Scan Processor (x1) 24221 | -5/Factory | Sucked down chute 24221 | -5/Factory | Entered Waste 24231 | -5/Waste | Spotted C-40 Crusher 24247 | -5/Waste | Destroyed C-40 Crusher 24260 | -5/Waste | Found Unknown Protection 24270 | -5/Waste | Spotted C-40 Crusher 24292 | -5/Waste | Destroyed C-40 Crusher 24301 | -5/Waste | Destroyed C-40 Crusher 24316 | -5/Waste | Identified Damper Plating 24322 | -5/Waste | Found Damper Plating 24382 | -5/Waste | Destroyed C-40 Crusher 24388 | -5/Waste | Spotted C-40 Crusher 24402 | -5/Waste | Destroyed C-40 Crusher 24502 | -5/Waste | Build established: Hauler-Skirmisher 24505 | -5/Waste | Spotted C-40 Crusher 24516 | -5/Waste | Destroyed C-40 Crusher 24575 | -5/Waste | Discovered new exit (range 13) 24597 | -5/Waste | Entered Factory 24627 | -5/Factory | Incoming investigation squad redirected 24891 | -5/Factory | Build established: Hauler-Mutant 25115 | -5/Factory | Fabricated Prc. Matter Filter (x1) 25503 | -5/Factory | Discovered new exit (range 23) 26114 | -5/Factory | Identified exit to Upper Caves 26114 | -5/Factory | Identified exit to Extension 26289 | -5/Factory | Entered Extension 26417 | -5/Extension | Rescued a captive Derelict 26786 | -5/Extension | Rescued a captive Derelict 26787 | -5/Extension | Rescued a captive Derelict 26813 | -5/Extension | Rescued a captive Derelict 26814 | -5/Extension | Rescued a captive Derelict 26822 | -5/Extension | Spotted B-75 Beast 26879 | -5/Extension | Destroyed B-75 Beast 26889 | -5/Extension | Disrupted transfer network 27164 | -5/Extension | Build established: Hauler-Skirmisher 27296 | -5/Extension | Spotted B-75 Beast 27306 | -5/Extension | Destroyed B-75 Beast 27340 | -5/Extension | Lost 4 parts (1p2u1w) 27605 | -5/Extension | Rescued a captive Derelict 27635 | -5/Extension | Rescued a captive Derelict 27764 | -5/Extension | Rescued A7 27795 | -5/Extension | Rescued a captive Derelict 27908 | -5/Extension | Rescued a captive Derelict 27953 | -5/Extension | Discovered new exit (range 10) 27955 | -5/Extension | Discovered new exit (range 6) 27982 | -5/Extension | Identified exit to Cetus 28018 | -5/Extension | Entered Cetus 28018 | -5/Cetus | Accompanied by 3 allies (A7) 28023 | -5/Cetus | Acquired a Cetus Manufacturing Module code from A7 28046 | -5/Cetus | Spotted Cetus Guard 28046 | -5/Cetus | Spotted Cetus Guard 28048 | -5/Cetus | Spotted Cetus Guard 28048 | -5/Cetus | Spotted Cetus Guard 28052 | -5/Cetus | Allies destroyed Cetus Guard 28055 | -5/Cetus | Destroyed Cetus Guard 28056 | -5/Cetus | Destroyed Cetus Guard 28061 | -5/Cetus | Destroyed Cetus Guard 28192 | -5/Cetus | Escorted A7 to Cetus Mainframe 28213 | -5/Cetus | Started Cetus Manufacturing Module 28234 | -5/Cetus | Discovered new exit (range 15) 28238 | -5/Cetus | Manufactured an Enhanced Grunt 28263 | -5/Cetus | Manufactured an Enhanced Grunt 28288 | -5/Cetus | Manufactured an Enhanced Grunt 28295 | -5/Cetus | Spotted Cetus Guard 28295 | -5/Cetus | Spotted Cetus Guard 28299 | -5/Cetus | Build established: Hauler-Mutant 28299 | -5/Cetus | Spotted Cetus Guard 28302 | -5/Cetus | Allies destroyed Cetus Guard 28304 | -5/Cetus | Spotted Cetus Guard 28305 | -5/Cetus | Destroyed Cetus Guard 28308 | -5/Cetus | Destroyed Cetus Guard 28309 | -5/Cetus | Destroyed Cetus Guard 28313 | -5/Cetus | Manufactured an Enhanced Grunt 28326 | -5/Cetus | Discovered new exit (range 15) 28335 | -5/Cetus | Met Revision 17 28338 | -5/Cetus | Manufactured an Enhanced Grunt 28527 | -5/Cetus | Destroyed A7 28530 | -5/Cetus | Extracted ID and sensor layout for unrecognized location from A7's data core 28537 | -5/Cetus | Found Prototype Protection 28537 | -5/Cetus | Identified Med. Regenerative Plating 28568 | -5/Cetus | Entered Archives 28831 | -5/Archives | Build established: Scavenger-Skirmisher 29151 | -5/Archives | Discovered new exit (range 15) 29168 | -5/Archives | Discovered new exit (range 16) 29195 | -5/Archives | Discovered new exit (range 14) 29295 | -5/Archives | Entered Hub_04(d) 29705 | -5/Hub_04(d) | Garrison activated, responded to threat 29869 | -5/Hub_04(d) | Incoming assault squad redirected 29895 | -5/Hub_04(d) | First assault squad dispatched 29936 | -5/Hub_04(d) | Discovered new exit (range 23) 29944 | -5/Hub_04(d) | Discovered new exit (range 24) 29979 | -5/Hub_04(d) | Incoming assault squad redirected 30151 | -5/Hub_04(d) | Entered Factory 30151 | -4/Factory | Evolved 2 slots: Utility x2 30207 | -4/Factory | Discovered new exit (range 23) 30437 | -4/Factory | Identified exit to Upper Caves 30504 | -4/Factory | Discovered new exit (range 24) 30791 | -4/Factory | Build established: Scavenger-Mutant 30950 | -4/Factory | Entered Armory 31196 | -4/Armory | Found Gamma Bomb Array 31932 | -4/Armory | Fabricated Imp. Weapon Shielding (x2) 32019 | -4/Armory | Fabricated Enh. Nova Cannon? 32051 | -4/Armory | Discovered new exit (range 20) 32136 | -4/Armory | Destroyed 9 combat bots 32323 | -4/Armory | Discovered new exit (range 22) 32385 | -4/Armory | Assisted by bots powering up and referring to "LRC-V3" 32410 | -4/Armory | Discovered new exit (range 24) 32450 | -4/Armory | First assault squad dispatched 32471 | -4/Armory | Incoming assault squad redirected 32553 | -4/Armory | Entered Lab 32553 | -4/Lab | Discovered new exit (range 9) 32572 | -4/Lab | Hidden lab's door opened automatically 32572 | -4/Lab | Sensor layout match revealed 32573 | -4/Lab | Gained access to the hidden lab's interior 32695 | -4/Lab | Found Alien Artifact 32695 | -4/Lab | Identified Transdimensional Reconstructor 32695 | -4/Lab | Warped through subspace 32702 | -4/Lab | Unable to decrypt terminal 32765 | -4/Lab | Found Prototype Energy Gun 32766 | -4/Lab | Identified Tachyon Dispersion Ray 32778 | -4/Lab | Found Prototype Protection 32778 | -4/Lab | Identified Hvy. Regenerative Plating 32875 | -4/Lab | Build established: Hauler-Mutant 34312 | -4/Lab | Found Alien Artifact 34312 | -4/Lab | Identified Integrated Reactor 34312 | -4/Lab | Installed Integrated Reactor, increased core energy generation (+10) 34331 | -4/Lab | Found Core Expander 34331 | -4/Lab | Installed Core Expander, added new Utility slot 34385 | -4/Lab | Entered Research 34385 | -3/Research | Evolved 2 slots: Utility x1, Weapon x1 34387 | -3/Research | Loaded intel: 15 terminal locations 34585 | -3/Research | Revision forces began assault on 0b10 34698 | -3/Research | Met up with Revision 17++ 34907 | -3/Research | Discovered new exit (range 16) 34943 | -3/Research | Identified exit to Research 35085 | -3/Research | Research terminal network offline 35143 | -3/Research | Found Prototype Processor 35143 | -3/Research | Identified Exp. Target Analyzer 35433 | -3/Research | Discovered new exit (range 18) 35636 | -3/Research | Discovered exit to Research (range 23) 36019 | -3/Research | Spotted Striker 36029 | -3/Research | Spotted Striker 36042 | -3/Research | Spotted Striker 36043 | -3/Research | Spotted Striker 36049 | -3/Research | Destroyed Striker 36051 | -3/Research | Destroyed Striker 36090 | -3/Research | Destroyed 10 combat bots 36175 | -3/Research | Entered another Research area 36175 | -2/Research | Evolved 2 slots: Propulsion x2 36400 | -2/Research | Discovered new exit (range 21) 36953 | -2/Research | Garrison activated, responded to threat 37675 | -2/Research | First assault squad dispatched 37688 | -2/Research | Discovered new exit (range 24) 37775 | -2/Research | Identified exit to Access 37803 | -2/Research | Entered Access 37803 | -1/Access | Evolved 1 slot: Power x1 37843 | -1/Access | Incoming investigation squad redirected 37887 | -1/Access | Found Prototype Device 37891 | -1/Access | Identified Exp. Force Field 37998 | -1/Access | Found Adv. Powered Armor 38709 | -1/Access | Garrison activated, responded to threat 39075 | -1/Access | System corruption reached 10% 39101 | -1/Access | First assault squad dispatched 39621 | -1/Access | Incoming assault squad redirected 39755 | -1/Access | Destroyed 9 combat bots 40625 | -1/Access | Discovered new exit (range 21) 40638 | -1/Access | High security lockdown imminent 40718 | -1/Access | High security lockdown engaged 40729 | -1/Access | Entered Command 41521 | -1/Command | First assault squad dispatched 41995 | -1/Command | Incoming assault squad redirected 42160 | -1/Command | Spotted B-99 Colossus 42385 | -1/Command | High security lockdown imminent 42431 | -1/Command | Lost 3 parts (1u2w) 42446 | -1/Command | Discovered new exit (range 21) 42465 | -1/Command | High security lockdown engaged 42646 | -1/Command | Scanned by Researcher 42661 | -1/Command | Spotted Striker 42661 | -1/Command | Spotted Striker 42661 | -1/Command | Spotted Investigator 42679 | -1/Command | Destroyed Striker 42688 | -1/Command | Self-destructed Last Messages --------------- 42679_ Striker destroyed. 42679_ Switching to secondary target: B-74 Champion. 42679_ Slug penetrates B-74 Champion. 42679_ Slug penetrates Wall. 42679_ B-74 Champion held in stasis. 42682_ Slug penetrates Wall. 42682_ Slug penetrates L-61 Swordsman. 42682_ Slug penetrates M-36 Artificer. 42682_ G-73 Enforcer suffers critical hit. 42682_ Destroyed Myomer Leg. 42682_ Held in stasis. 42682_ Investigator is analyzing... 42685_ Slug penetrates L-61 Swordsman. 42685_ L-61 Swordsman destroyed. 42685_ Switching to secondary target: B-74 Champion. 42685_ Slug penetrates B-74 Champion. 42685_ Slug penetrates Wall. 42685_ Held in stasis. 42685_ Investigator is analyzing... 42686_ E-15 Imp destroyed. Map ----- +----------------------------------------------------+ | ?????# ?? ## ????????????????? | | ?????# # ## ???????????????? | | ???### ##########/##+##+### "" ?#????????????? | | ?? ?#? ###""" ?###??????????? | | ?? #?# ###"T ###??????????? | | #?#### ###""" ###?#????????? | | ?##?##? ### "" ####?????????? | | #?#### "" #####+### #####????????? | | ###### """" # # ######+#?????? | | ###### """" # ########## ?? ????? | | ###### "" # ########## ?????? | | ##### # ########## ???? | | ##### # #######?## ???? | | ##### i b ####################??? | | ##### ##l######## ####################??? | | ########## #### b ##################??#?? | | ########## g #### ### BB#####??? | | #########Y #### ### BB######?? | | ########## #### ### #E# # #? | | ########## #####+######## """""" ?? | | ########## g ## %%%g!=### " " ? ??? | | #############+#### %!%w[%### " "" " ? | | ############# ####= %g=g[c### " <" " ? ?? | | ############# #### *mg%=### " " ? ? | | #############e##########%bb### """""" ? | | #############= *g*==*!m!!@#### #E#E# #? | | ############# Kp [ *%%!*[=#### BB#######? | | ############# /* !!=/==#### BB######?? | | ############# %=///!%######################?? | | ################ %%%!%####################???? | | ################ ===######################?? | | ################ ! #####################??? | | ################ ######################?? | | ################+## #####################??? | | ########## """"% # | | ########## """" # ############################## | | ########## """" #h################## #### | | ########## """" # h ############ # | | ########## # ############ # | | ########## # ############ # | | ########## # ! ############ # | | ##########= # ############ # | | ## ##### # == ############ / | | ## #####+######## == +%= / # | | + # #%########## # | | + # #=####### [ ######## | | + # #%+[** = #### | | + # #%#==[ == # ## ### | | ? + ##+######!#==!== [ = #### ## | | ## ######## !=#! = #### ## | +----------------------------------------------------+ Best States ------------- Heat Dissipation 90 Coolant Potential 80 Energy Generation 55 Energy Capacity 1400 Matter Stores 300 Matter Capacity 300 Sight Range 16 Terrain Scan Range 24 Terrain Scan Density 1010 Cloak Strength 5 Additional Mass Support 6 Armor Coverage 3200 Resistance: KI 25 Resistance: TH 20 Resistance: EM 90 Weapon Shielding 66 Weapon Cycling 25 Evasion (%) 40 Targeting Accuracy 8 Armor Integrity Analysis 66 Recoil Reduction 6 Matter Filtering 50 Salvage Targeting 3 Offensive Hacking 11 Defensive Hacking 10 Item Schematics ----------------- Hcp. Storage Unit | -10/Materials | Hacked Imp. Weapon Shielding | -9/Materials | Scanalyzed Combat Drone Bay | -6/Data Miner | Free Exp. Terrain Scan Processor | -6/Data Miner | Free Robot Schematics ------------------ G-67 Veteran | -6/Data Miner | Free X-72 Disruptor | -6/Data Miner | Free H-66 Slayer | -6/Data Miner | Free I-36 Angel | -6/Data Miner | Free Fabricated ------------ Hvy. Neutron Cannon | x2 | -7/Factory | Preloaded Exp. Terrain Scan Processor | x1 | -5/Factory Prc. Matter Filter | x1 | -5/Factory | Preloaded Imp. Weapon Shielding | x2 | -4/Armory Enh. Nova Cannon | x1 | -4/Armory | Preloaded Alien Tech Used ----------------- Core Expander Transdimensional Reconstructor Integrated Reactor Achievements -------------- Killing Spree Challenges ------------ None Game ------ Seed RagnarokRocketBoomstick Manual? 0 Play Time 08:16:23 Cumulative 206.2 hours Start 2020.12.10 @ 18:21:56 End 2020.12.11 @ 22:20:35 Sessions 5 Manual Loads 0 Difficulty Rogue Special Mode Halloween2020/ForbiddenLore Game No. 112 Rogue 112 Adventurer 0 Explorer 0 Win Type - Total 1 Types 1/0/0/0/0/0/0/0/0 Lore% 59 Gallery% 69 Achievement% 56 Wizard Run 0 Options --------- ASCII 1 Keyboard 1 Movement Vi Keybinds 0 Fullscreen 1 Font 16/Terminus Map View 75x55 Tactical HUD 1 Map Filters NONE Filters NONE Steam 1 RUN: e2e5afc5-8e73-4b1f-9a5e-80cdf72a6c85